fUST/lending_fUST_20251228
["ID","MTS","AMOUNT","RATE_DAILY","PERIOD"]
[399907393,1766851534157,-171.38,0.000144,2]
[399907394,1766851534183,-199.24830306,0.00014549,2]
[399907395,1766851534205,-536.0740248,0.00014774,2]
[399907396,1766851642366,257.55819834,0.00014231,2]
[399907398,1766851759100,-171.38,0.000144,2]
[399907399,1766851759124,-195.263337,0.00014587,2]
[399907400,1766851759145,-3665.65368891,0.00014774,2]
[399907402,1766851767135,-2022.02262054,0.00014774,2]
[399907403,1766851767201,-1348.56430035,0.00014774,2]
[399907404,1766851767224,-1200.0,0.00014979,2]
[399907405,1766851767245,-169.808076,0.00014998,2]
[399907406,1766851767267,-180.61434267,0.00015161,2]
[399907407,1766851767291,-325.10581681,0.00015161,2]
[399907408,1766851767312,-254.19752644,0.00015161,2]
[399907409,1766851767335,-457.55554759,0.00015161,2]
[399907410,1766851805557,151.48,0.000144,2]
[399907411,1766851805939,151.48,0.000155,2]
[399907412,1766851806217,154.49216668,0.00015612,2]
[399907450,1766851832567,-160.11652101,0.00015857,2]
[399907452,1766851832577,-920.24997351,0.00015894,2]
[399907455,1766851832590,-279.75002649,0.00015894,2]
[399907457,1766851832601,-382.26405455,0.00015896,2]
[399907461,1766851832614,-144.39290226,0.00015896,2]
[399907464,1766851832625,-188.61709774,0.00015955,2]
[399907562,1766851838538,-42.50467221,0.00015955,2]
[399907563,1766851838550,-500.0,0.00015955,2]
[399907564,1766851838560,-500.0,0.00015955,2]
[399907565,1766851838571,-500.0,0.00015955,2]
[399907566,1766851838583,-500.0,0.00015955,2]
[399907567,1766851838594,-466.54560162,0.00015955,2]
[399907568,1766851838604,-500.0,0.00015955,2]
[399907569,1766851838615,-500.0,0.00015955,2]
[399907570,1766851838627,-500.0,0.00015955,2]
[399907571,1766851838641,-500.0,0.00015955,2]
[399907572,1766851838652,-500.0,0.00015955,2]
[399907573,1766851838662,-500.0,0.00015955,2]
[399907574,1766851838673,-500.0,0.00015955,2]
[399907575,1766851838686,-500.0,0.00015955,2]
[399907576,1766851838696,-500.0,0.00015955,2]
[399907577,1766851838706,-500.0,0.00015955,2]
[399907578,1766851838717,-500.0,0.00015955,2]
[399907579,1766851838728,-500.0,0.00015955,2]
[399907580,1766851838739,-500.0,0.00015955,2]
[399907581,1766851838748,-500.0,0.00015955,2]
[399907582,1766851838758,-500.0,0.00015955,2]
[399907583,1766851838769,-500.0,0.00015955,2]
[399907584,1766851838781,-500.0,0.00015955,2]
[399907585,1766851838791,-500.0,0.00015955,2]
[399907586,1766851838802,-500.0,0.00015955,2]
[399907587,1766851838813,-500.0,0.00015955,2]
[399907588,1766851838823,-500.0,0.00015955,2]
[399907589,1766851838839,-398.72699667,0.00015955,2]
[399907590,1766851838850,-500.0,0.00015955,2]
[399907591,1766851838861,-500.0,0.00015955,2]
[399907592,1766851838872,-300.0,0.00015955,2]
[399907593,1766851838883,-300.0,0.00015955,2]
[399907594,1766851838894,-300.0,0.00015955,2]
[399907595,1766851838905,-300.0,0.00015955,2]
[399907596,1766851838917,-500.0,0.00015956,2]
[399907597,1766851838928,-209.55649724,0.00015956,2]
[399907598,1766851838939,-498.09676027,0.00015956,2]
[399907599,1766851838951,-500.0,0.00015956,2]
[399907600,1766851838962,-500.0,0.00015956,2]
[399907601,1766851838974,-500.0,0.00015956,2]
[399907602,1766851838985,-292.59306297,0.00015956,2]
[399907603,1766851838995,-2574.95960217,0.00015957,2]
[399907604,1766851839008,-47425.04039783,0.00015957,2]
[399907605,1766851839019,-503.64606496,0.00015958,2]
[399907606,1766851839030,-627.95351682,0.00015995,2]
[399907607,1766851839041,-1567.2,0.00015995,2]
[399907608,1766851839052,-500.0,0.00015999,2]
[399907609,1766851839063,-500.0,0.00015999,2]
[399907610,1766851839073,-250.0,0.00016,2]
[399907611,1766851839084,-334.60768045,0.00016004,2]
[399907612,1766851839095,-526.65695679,0.00016047,2]
[399907613,1766851839106,-3212.5848172,0.00016192,2]
[399907614,1766851839116,-526.65695679,0.00016198,2]
[399907615,1766851839127,-2230.315306,0.00016296,2]
[399907616,1766851839137,-300.0,0.00016314,2]
[399907617,1766851839148,-300.0,0.00016314,2]
[399907618,1766851839160,-300.0,0.00016314,2]
[399907619,1766851839170,-300.0,0.00016314,2]
[399907620,1766851839193,-300.0,0.00016314,2]
[399907621,1766851839208,-300.0,0.00016314,2]
[399907622,1766851839220,-300.0,0.00016314,2]
[399907623,1766851839231,-300.0,0.00016314,2]
[399907624,1766851839243,-300.0,0.00016314,2]
[399907625,1766851839255,-300.0,0.00016314,2]
[399907626,1766851839267,-300.0,0.00016314,2]
[399907627,1766851839279,-300.0,0.00016314,2]
[399907628,1766851839291,-300.0,0.00016314,2]
[399907629,1766851839303,-300.0,0.00016314,2]
[399907630,1766851839315,-300.0,0.00016314,2]
[399907631,1766851839326,-600.0,0.00016314,2]
[399907632,1766851839337,-380.8300885,0.00016341,2]
[399907633,1766851839349,-526.65695679,0.00016349,2]
[399907634,1766851839359,-237.74797145,0.00016436,2]
[399907635,1766851839371,-488.35,0.00016487,2]
[399907636,1766851839382,-526.65695679,0.000165,2]
[399907637,1766851839393,-390.5797687,0.00016506,2]
[399907638,1766851839404,-386.3546416,0.00016506,2]
[399907639,1766851839415,-193.1773208,0.00016506,2]
[399907640,1766851839426,-193.1773208,0.00016506,2]
[399907641,1766851839437,-193.1773208,0.00016506,2]
[399907642,1766851839448,-193.1773208,0.00016506,2]
[399907643,1766851839459,-193.1773208,0.00016506,2]
[399907644,1766851839470,-193.1773208,0.00016506,2]
[399907645,1766851839481,-385.739686,0.00016506,2]
[399907646,1766851839492,-193.1773208,0.00016506,2]
[399907647,1766851839504,-230.41073766,0.00016587,2]
[399907648,1766851839515,-1567.2,0.00016596,2]
[399907649,1766851839526,-1567.2,0.00016596,2]
[399907650,1766851839537,-1567.2,0.00016596,2]
[399907651,1766851839548,-1567.2,0.00016596,2]
[399907652,1766851839559,-70995.17052405,0.00016597,2]
[399907653,1766851839573,-596.42230822,0.00016597,2]
[399907654,1766851839592,-327.55762312,0.00016597,2]
[399907655,1766851839605,-354.37501678,0.00016597,2]
[399907656,1766851839618,-252.17382083,0.00016597,2]
[399907657,1766851839629,-184.573495,0.00016597,2]
[399907658,1766851839639,-184.573495,0.00016597,2]
[399907659,1766851839650,-184.573495,0.00016597,2]
[399907660,1766851839661,-100.87572782,0.00016597,2]
[399907661,1766851839679,-83.69776718,0.00016597,2]
[399907662,1766851839689,-152.992785,0.00016597,2]
[399907663,1766851839700,-1290.15458357,0.00016599,2]
[399907684,1766851840739,-277.04541643,0.00016599,2]
[399907685,1766851840750,-1567.2,0.00016599,2]
[399907686,1766851840762,-1567.2,0.00016599,2]
[399907687,1766851840775,-1567.2,0.00016599,2]
[399907688,1766851840786,-332.90693006,0.00016599,2]
[399907761,1766851846867,-1234.29306994,0.00016599,2]
[399907763,1766851846878,-1567.2,0.00016599,2]
[399907765,1766851846888,-1567.2,0.00016599,2]
[399907767,1766851846898,-1567.2,0.00016599,2]
[399907769,1766851846908,-1567.2,0.00016599,2]
[399907771,1766851846918,-1567.2,0.00016599,2]
[399907773,1766851846928,-1567.2,0.00016599,2]
[399907775,1766851846939,-1567.2,0.00016599,2]
[399907777,1766851846948,-432.57720668,0.00016599,2]
[399907931,1766851868421,161.44,0.000144,2]
[399907932,1766851907555,150.0,0.00011638,2]
[399907933,1766851908018,150.0,0.00012192,2]
[399907934,1766851908408,189.48,0.00012746,2]
[399907935,1766851908811,252.64,0.000133,2]
[399907936,1766851909223,315.8,0.00013854,2]
[399907937,1766851909691,81.39800701,0.00014409,2]
[399907938,1766851909719,297.56199299,0.00014409,2]
[399907939,1766851937143,500.0,0.00013273,2]
[399907940,1766851983915,500.0,0.00013273,2]
[399907941,1766851984326,500.0,0.00013699,2]
[399907942,1766851985862,150.0,0.00011782,2]
[399907943,1766851986260,150.0,0.00012343,2]
[399907944,1766851986725,150.0,0.00012904,2]
[399907945,1766851987248,194.76,0.00013465,2]
[399907946,1766851987327,500.0,0.00013273,2]
[399907947,1766851987640,243.45,0.00014026,2]
[399907948,1766851994736,497.1379599,0.00013273,2]
[399907949,1766851995433,548.39478916,0.00013699,2]
[399907950,1766851995732,500.0,0.00013699,2]
[399907951,1766851998144,500.0,0.00013699,2]
[399907952,1766851998401,500.0,0.00013699,2]
[399907953,1766851999399,500.0,0.00013699,2]
[399907954,1766852001502,500.0,0.00013699,2]
[399907955,1766852002429,300.0,0.00013673,2]
[399907956,1766852006385,500.0,0.00013699,2]
[399907957,1766852006435,1000.0,0.00014247,2]
[399907958,1766852007320,500.0,0.00013699,2]
[399907959,1766852007373,1000.48930334,0.00014247,2]
[399907960,1766852007539,500.0,0.00013273,2]
[399907961,1766852007590,1000.0,0.00013821,2]
[399907962,1766852044608,500.0,0.00013273,2]
[399907963,1766852044645,1000.0,0.00013821,2]
[399907964,1766852051815,500.0,0.00013699,2]
[399907965,1766852051848,1000.0,0.00014247,2]
[399907966,1766852053947,191.58046107,0.00013699,2]
[399907967,1766852054316,1000.0,0.00014247,2]
[399907968,1766852054351,500.0,0.00013699,2]
[399907969,1766852056236,500.0,0.00013273,2]
[399907970,1766852056309,500.0,0.00013821,2]
[399907971,1766852061333,150.0,0.0001161,2]
[399907972,1766852061768,150.0,0.00012163,2]
[399907973,1766852062292,150.0,0.00012716,2]
[399907974,1766852062754,150.0,0.00013269,2]
[399907975,1766852063212,186.93,0.00013821,2]
[399907976,1766852063636,224.32,0.00014374,2]
[399907977,1766852103169,3697.58430367,0.00014,2]
[399907978,1766852103587,150.0,0.00013699,2]
[399907979,1766852103644,400.0,0.00014247,2]
[399907980,1766852103677,500.0,0.00013699,2]
[399907981,1766852103709,500.0,0.00014247,2]
[399907982,1766852106679,500.0,0.00013273,2]
[399907983,1766852106714,1000.0,0.00013821,2]
[399907984,1766852106959,315.42073836,0.00014368,2]
[399907985,1766852112962,500.0,0.00013699,2]
[399907986,1766852113010,500.0,0.00014247,2]
[399907987,1766852113782,538.76397659,0.00013699,2]
[399907988,1766852115260,500.0,0.00013699,2]
[399907989,1766852115298,500.0,0.00014247,2]
[399907990,1766852116771,500.0,0.00013699,2]
[399907991,1766852116829,500.0,0.00014247,2]
[399907992,1766852117204,500.0,0.00013699,2]
[399907993,1766852117266,295.76406301,0.00014247,2]
[399907994,1766852119553,500.0,0.00013699,2]
[399907995,1766852119591,500.0,0.00014247,2]
[399907996,1766852120457,300.0,0.00013673,2]
[399907997,1766852120504,300.0,0.00014221,2]
[399908000,1766852135071,150.0,0.00011611,2]
[399908001,1766852135583,150.0,0.00012164,2]
[399908002,1766852136089,150.0,0.00012717,2]
[399908003,1766852136518,150.0,0.0001327,2]
[399908004,1766852137015,150.0,0.00013823,2]
[399908005,1766852137447,150.0,0.00014375,2]
[399908006,1766852163443,500.0,0.00013699,2]
[399908007,1766852163500,1000.0,0.00014247,2]
[399908008,1766852163550,500.0,0.00013273,2]
[399908009,1766852163586,1000.0,0.00013821,2]
[399908010,1766852163646,1500.0,0.00014368,2]
[399908011,1766852166591,500.0,0.00013699,2]
[399908012,1766852166649,1000.0,0.00014247,2]
[399908013,1766852205695,150.0,0.00011683,2]
[399908014,1766852206151,150.0,0.0001224,2]
[399908015,1766852206604,150.0,0.00012796,2]
[399908016,1766852207017,150.0,0.00013352,2]
[399908017,1766852207443,150.0,0.00013909,2]
[399908018,1766852225154,500.0,0.00013273,2]
[399908019,1766852225200,1000.0,0.00013821,2]
[399908020,1766852225254,500.0,0.00014368,2]
[399908021,1766852226378,500.0,0.00013699,2]
[399908022,1766852226493,1000.0,0.00014247,2]
[399908023,1766852272927,150.0,0.0001135,2]
[399908024,1766852308491,309.5335176,0.00030137,120]
[399908025,1766852309206,8666.0,0.00030137,120]
[399908026,1766852350879,32280.68894542,0.00014,2]
[399908027,1766852403092,3697.58430367,0.00014,2]
[399908028,1766852442226,383.22609321,0.00013699,2]
[399908029,1766852442259,616.77390679,0.00013699,2]
[399908030,1766852467851,500.0,0.00013699,2]
[399908031,1766852467887,1000.0,0.00014247,2]
[399908032,1766852646071,500.0,0.00013273,2]
[399908033,1766852646117,500.0,0.00013821,2]
[399908034,1766852703116,3697.58430367,0.00014,2]
[399908035,1766852758142,-158.11,0.000144,2]
[399908036,1766852758163,-6.62283122,0.000144,2]
[399908038,1766852845101,-619.37716878,0.000144,2]
[399908039,1766852845125,-192.72671915,0.00014436,2]
[399908040,1766852845147,-160.11652101,0.00014541,2]
[399908041,1766852845170,-300.0,0.00014639,2]
[399908042,1766852845191,-300.0,0.00014639,2]
[399908043,1766852845214,-500.0,0.0001464,2]
[399908044,1766852845236,-241.33841591,0.0001464,2]
[399908047,1766852917542,228.16230445,0.0001536,120]
[399908048,1766852945122,298.50297753,0.00013699,2]
[399908049,1766852945159,500.0,0.00013273,2]
[399908050,1766852945193,500.0,0.00013821,2]
[399908051,1766852948194,-300.0,0.00014638,2]
[399908052,1766852948219,-500.0,0.00014639,2]
[399908053,1766852948247,-500.0,0.00014639,2]
[399908054,1766852948270,-500.0,0.00014639,2]
[399908055,1766852948294,-500.0,0.00014639,2]
[399908056,1766852948317,-590.99982706,0.00014639,2]
[399908057,1766852948345,-500.0,0.00014639,2]
[399908058,1766852948368,-500.0,0.00014639,2]
[399908059,1766852948392,-500.0,0.00014639,2]
[399908060,1766852948415,-500.0,0.00014639,2]
[399908061,1766852948439,-500.0,0.00014639,2]
[399908062,1766852948461,-500.0,0.00014639,2]
[399908063,1766852948483,-500.0,0.00014639,2]
[399908064,1766852948526,-500.0,0.00014639,2]
[399908065,1766852948559,-500.0,0.00014639,2]
[399908066,1766852948590,-500.0,0.00014639,2]
[399908067,1766852948619,-500.0,0.00014639,2]
[399908068,1766852948647,-500.0,0.00014639,2]
[399908069,1766852948675,-500.0,0.00014639,2]
[399908070,1766852948705,-500.0,0.00014639,2]
[399908071,1766852948734,-316.74433583,0.00014639,2]
[399908072,1766852948762,-334.83123424,0.00014639,2]
[399908073,1766852948791,-500.0,0.00014639,2]
[399908074,1766852948821,-500.0,0.00014639,2]
[399908075,1766852948851,-500.0,0.00014639,2]
[399908076,1766852948878,-500.0,0.00014639,2]
[399908077,1766852948907,-500.0,0.00014639,2]
[399908078,1766852948934,-500.0,0.00014639,2]
[399908079,1766852948962,-500.0,0.00014639,2]
[399908080,1766852948988,-500.0,0.00014639,2]
[399908081,1766852949019,-500.0,0.00014639,2]
[399908082,1766852949048,-500.0,0.00014639,2]
[399908083,1766852949081,-500.0,0.00014639,2]
[399908084,1766852949111,-500.0,0.00014639,2]
[399908085,1766852949140,-500.0,0.00014639,2]
[399908086,1766852949167,-500.0,0.00014639,2]
[399908087,1766852949195,-500.0,0.00014639,2]
[399908088,1766852949220,-500.0,0.00014639,2]
[399908089,1766852949247,-500.0,0.00014639,2]
[399908090,1766852949276,-500.0,0.00014639,2]
[399908091,1766852949303,-500.0,0.00014639,2]
[399908092,1766852949332,-500.0,0.00014639,2]
[399908093,1766852949361,-500.0,0.00014639,2]
[399908094,1766852949396,-500.0,0.00014639,2]
[399908095,1766852949426,-500.0,0.00014639,2]
[399908096,1766852949454,-186.69100553,0.00014639,2]
[399908097,1766852949487,-500.0,0.00014639,2]
[399908098,1766852949517,-500.0,0.00014639,2]
[399908099,1766852949546,-500.0,0.00014639,2]
[399908100,1766852949574,-500.0,0.00014639,2]
[399908101,1766852949604,-500.0,0.00014639,2]
[399908102,1766852949637,-500.0,0.00014639,2]
[399908103,1766852949665,-500.0,0.00014639,2]
[399908104,1766852949693,-500.0,0.00014639,2]
[399908105,1766852949722,-500.0,0.00014639,2]
[399908106,1766852949753,-500.0,0.00014639,2]
[399908107,1766852949782,-500.0,0.00014639,2]
[399908108,1766852949810,-500.0,0.00014639,2]
[399908109,1766852949835,-500.0,0.00014639,2]
[399908110,1766852949863,-500.0,0.00014639,2]
[399908111,1766852949890,-500.0,0.00014639,2]
[399908112,1766852949920,-500.0,0.00014639,2]
[399908113,1766852949955,-500.0,0.00014639,2]
[399908114,1766852949982,-350.69902251,0.00014639,2]
[399908115,1766852950007,-500.0,0.00014639,2]
[399908116,1766852950034,-348.66773219,0.00014639,2]
[399908117,1766852950061,-500.0,0.00014639,2]
[399908118,1766852950084,-500.0,0.00014639,2]
[399908119,1766852950110,-443.04785803,0.00014639,2]
[399908120,1766852950137,-1200.0,0.00014639,2]
[399908121,1766852950166,-50000.0,0.0001464,2]
[399908122,1766852950189,-300.0,0.0001464,2]
[399908123,1766852950214,-300.0,0.0001464,2]
[399908124,1766852950238,-1200.0,0.0001464,2]
[399908125,1766852950277,-500.0,0.00014641,2]
[399908126,1766852950309,-563.06619497,0.00014641,2]
[399908127,1766852950336,-193.36987733,0.00014645,2]
[399908128,1766852950363,-500.0,0.00014645,2]
[399908129,1766852950389,-500.0,0.00014646,2]
[399908130,1766852950415,-8398.0751229,0.00014647,2]
[399908131,1766852962093,-5603.61425644,0.00014647,2]
[399908133,1766852987495,2786.51943881,0.0001439,7]
[399908134,1766852987517,2843.24001941,0.0001439,7]
[399908135,1766852987545,29781.51829863,0.0001439,7]
[399908136,1766853003105,3697.58430367,0.00014,2]
[399908170,1766853031696,-5116.22045626,0.00014647,2]
[399908172,1766853031706,-188.87218477,0.00014793,2]
[399908173,1766853031715,-300.0,0.00014938,2]
[399908176,1766853031725,-300.0,0.00014938,2]
[399908179,1766853031735,-1200.0,0.00014938,2]
[399908182,1766853031745,-300.0,0.00014939,2]
[399908185,1766853031755,-300.0,0.00014939,2]
[399908189,1766853031769,-300.0,0.00014939,2]
[399908191,1766853031779,-300.0,0.00014939,2]
[399908192,1766853031790,-300.0,0.00014939,2]
[399908194,1766853031800,-300.0,0.00014939,2]
[399908196,1766853031811,-300.0,0.00014939,2]
[399908198,1766853031820,-300.0,0.00014939,2]
[399908200,1766853031830,-300.0,0.00014939,2]
[399908201,1766853031840,-300.0,0.00014939,2]
[399908203,1766853031850,-300.0,0.00014939,2]
[399908205,1766853031860,-300.0,0.00014939,2]
[399908207,1766853031870,-300.0,0.00014939,2]
[399908209,1766853031880,-300.0,0.00014939,2]
[399908211,1766853031892,-300.0,0.00014939,2]
[399908213,1766853031902,-546.56962036,0.00015056,2]
[399908214,1766853031912,-5430.6147032,0.00015057,2]
[399908216,1766853031923,-600.0,0.00015357,2]
[399908218,1766853031933,-160.11652101,0.00015757,2]
[399908220,1766853031943,-193.1773208,0.000158,2]
[399908222,1766853031953,-10404.68832917,0.00015855,2]
[399908224,1766853031962,-151.0,0.00015855,2]
[399908226,1766853031973,-151.0,0.00015855,2]
[399908228,1766853031983,-151.0,0.00015855,2]
[399908230,1766853031993,-151.0,0.00015855,2]
[399908232,1766853032002,-151.0,0.00015857,2]
[399908234,1766853032012,-151.0,0.00015857,2]
[399908235,1766853032022,-151.0,0.00015857,2]
[399908237,1766853032032,-151.0,0.00015857,2]
[399908239,1766853032042,-323.28109795,0.0001594,2]
[399908241,1766853032053,-500.0,0.00015956,2]
[399908243,1766853032074,-500.0,0.00015956,2]
[399908245,1766853032089,-500.0,0.00015956,2]
[399908247,1766853032099,-500.0,0.00015957,2]
[399908248,1766853032108,-193.1773208,0.00016,2]
[399908250,1766853032119,-193.1773208,0.00016,2]
[399908253,1766853032132,-2044.9530247,0.00016241,2]
[399908255,1766853032142,-500.0,0.00016313,2]
[399908257,1766853032153,-870.77529542,0.00016347,2]
[399908259,1766853032163,-401.0,0.0001635,2]
[399908261,1766853032173,-800.0,0.00016393,2]
[399908262,1766853032183,-163.4310333,0.00016502,2]
[399908264,1766853032193,-193.1773208,0.00016506,2]
[399908266,1766853032202,-193.1773208,0.00016506,2]
[399908268,1766853032212,-193.1773208,0.00016506,2]
[399908270,1766853032222,-193.1773208,0.00016506,2]
[399908272,1766853032232,-193.1773208,0.00016578,2]
[399908274,1766853032242,-500.0,0.00016596,2]
[399908276,1766853032252,-500.0,0.00016596,2]
[399908278,1766853032263,-500.0,0.00016596,2]
[399908279,1766853032274,-500.0,0.00016599,2]
[399908281,1766853032284,-500.0,0.00016599,2]
[399908283,1766853032294,-500.0,0.00016599,2]
[399908284,1766853032304,-500.0,0.00016599,2]
[399908286,1766853032315,-500.0,0.00016599,2]
[399908287,1766853032325,-500.0,0.00016599,2]
[399908288,1766853032335,-500.0,0.00016599,2]
[399908289,1766853032345,-500.0,0.00016599,2]
[399908290,1766853032355,-500.0,0.00016599,2]
[399908291,1766853032364,-500.0,0.00016599,2]
[399908292,1766853032374,-500.0,0.00016599,2]
[399908293,1766853032385,-500.0,0.00016599,2]
[399908294,1766853032395,-537.84018387,0.00016599,2]
[399908295,1766853032405,-199.04720161,0.00016599,2]
[399908296,1766853032416,-358.2849629,0.00016599,2]
[399908297,1766853032425,-224.021,0.00016699,2]
[399908298,1766853032435,-222.86917802,0.00016793,2]
[399908299,1766853032447,-555.86709585,0.00016867,2]
[399908300,1766853032457,-720.0,0.00016892,2]
[399908301,1766853032468,-284.21502388,0.00017089,2]
[399908302,1766853032478,-1809.87021608,0.00017165,2]
[399908303,1766853032489,-1000.56077254,0.00017574,2]
[399908304,1766853032500,-241.9969767,0.00017636,2]
[399908305,1766853032510,-158.11,0.000183,2]
[399908306,1766853032521,-864.0,0.00018582,2]
[399908307,1766853032531,-416.0,0.00018616,2]
[399908308,1766853032541,-256.86617128,0.00018793,2]
[399908309,1766853032551,-716.8245647,0.00019062,2]
[399908310,1766853032561,-151.0,0.00019178,2]
[399908311,1766853032571,-151.0,0.00019178,2]
[399908312,1766853032581,-151.0,0.00019178,2]
[399908313,1766853032590,-151.0,0.00019178,2]
[399908314,1766853032601,-151.0,0.00019178,2]
[399908315,1766853032611,-151.0,0.00019178,2]
[399908316,1766853032621,-151.0,0.00019178,2]
[399908317,1766853032631,-151.0,0.00019178,2]
[399908318,1766853032641,-151.0,0.00019178,2]
[399908319,1766853032651,-151.0,0.00019178,2]
[399908320,1766853032661,-151.0,0.00019178,2]
[399908321,1766853032671,-151.0,0.00019178,2]
[399908322,1766853032681,-151.0,0.00019178,2]
[399908323,1766853032691,-151.0,0.00019178,2]
[399908324,1766853032701,-151.0,0.00019178,2]
[399908325,1766853032710,-151.0,0.00019178,2]
[399908326,1766853032720,-151.0,0.00019178,2]
[399908327,1766853032730,-151.0,0.00019178,2]
[399908328,1766853032740,-151.0,0.00019178,2]
[399908329,1766853032750,-151.0,0.00019178,2]
[399908330,1766853032760,-151.0,0.00019178,2]
[399908331,1766853032770,-151.0,0.00019178,2]
[399908332,1766853032779,-151.0,0.00019178,2]
[399908333,1766853032789,-151.0,0.00019178,2]
[399908334,1766853032800,-151.0,0.00019178,2]
[399908335,1766853032811,-151.0,0.00019178,2]
[399908336,1766853032821,-151.0,0.00019178,2]
[399908337,1766853032831,-151.0,0.00019178,2]
[399908338,1766853032840,-151.0,0.00019178,2]
[399908339,1766853032850,-151.0,0.00019178,2]
[399908340,1766853032859,-151.0,0.00019178,2]
[399908341,1766853032869,-192.550491,0.00019178,2]
[399908342,1766853032879,-151.0,0.00019178,2]
[399908343,1766853032888,-151.0,0.00019178,2]
[399908344,1766853032898,-151.0,0.00019178,2]
[399908345,1766853032908,-151.0,0.00019178,2]
[399908346,1766853032922,-151.0,0.00019178,2]
[399908347,1766853032932,-151.0,0.00019178,2]
[399908348,1766853032942,-151.0,0.00019178,2]
[399908349,1766853032952,-151.0,0.00019178,2]
[399908350,1766853032962,-151.0,0.00019178,2]
[399908351,1766853032971,-151.0,0.00019178,2]
[399908352,1766853032980,-151.0,0.00019178,2]
[399908353,1766853032990,-151.0,0.00019178,2]
[399908354,1766853033000,-151.0,0.00019178,2]
[399908355,1766853033010,-151.0,0.00019178,2]
[399908356,1766853033020,-151.0,0.00019178,2]
[399908357,1766853033029,-151.0,0.00019178,2]
[399908358,1766853033039,-151.0,0.00019178,2]
[399908359,1766853033048,-151.0,0.00019178,2]
[399908360,1766853033058,-151.0,0.00019178,2]
[399908361,1766853033068,-151.0,0.00019178,2]
[399908362,1766853033081,-266.947701,0.00019178,2]
[399908363,1766853033091,-151.0,0.00019178,2]
[399908364,1766853033101,-151.0,0.00019178,2]
[399908365,1766853033111,-151.0,0.00019178,2]
[399908366,1766853033122,-230.227136,0.00019178,2]
[399908367,1766853033132,-230.227136,0.00019178,2]
[399908368,1766853033143,-230.227136,0.00019178,2]
[399908369,1766853033153,-230.227136,0.00019178,2]
[399908370,1766853033212,-230.227136,0.00019178,2]
[399908371,1766853033223,-230.227136,0.00019178,2]
[399908372,1766853033233,-230.227136,0.00019178,2]
[399908373,1766853033243,-230.227136,0.00019178,2]
[399908374,1766853033253,-230.227136,0.00019178,2]
[399908375,1766853033263,-230.227136,0.00019178,2]
[399908376,1766853033273,-230.227136,0.00019178,2]
[399908377,1766853033283,-230.227136,0.00019178,2]
[399908378,1766853033293,-151.0,0.00019178,2]
[399908379,1766853033303,-151.0,0.00019178,2]
[399908380,1766853033312,-151.0,0.00019178,2]
[399908381,1766853033322,-151.0,0.00019178,2]
[399908382,1766853033332,-191.908178,0.00019178,2]
[399908383,1766853033342,-191.908178,0.00019178,2]
[399908384,1766853033351,-191.908178,0.00019178,2]
[399908385,1766853033361,-191.908178,0.00019178,2]
[399908386,1766853033371,-191.908178,0.00019178,2]